bitfinex-derivatives/quotes_BTCF0:USTF0_20240917
["timestamp","ask_amount","ask_price","bid_price","bid_amount"]
[1726584171613,0.80741062,60174.0,60173.0,0.01247449]
[1726584171914,0.083093,60164.0,60163.0,0.443894]
[1726584172215,0.083093,60164.0,60163.0,0.01121461]
[1726584172413,0.083093,60164.0,60163.0,0.083095]
[1726584173716,0.083095,60163.0,60162.0,0.09673868]
[1726584174011,0.05961362,60167.0,60166.0,0.08309]
[1726584174211,0.05961362,60169.0,60166.0,0.08309]
[1726584174415,0.05961362,60168.0,60166.0,0.08309]
[1726584174615,0.3608,60170.0,60166.0,0.08309]
[1726584174616,0.05961362,60167.0,60166.0,0.08309]
[1726584175223,0.05961362,60167.0,60166.0,0.44389]
[1726584175715,0.3608,60172.0,60166.0,0.3608]
[1726584175916,0.05961362,60174.0,60166.0,0.3608]
[1726584176118,0.3608,60173.0,60172.0,0.083082]
[1726584176318,0.05961362,60174.0,60172.0,0.083082]
[1726584176505,0.05961362,60174.0,60166.0,0.3608]
[1726584176506,0.3608,60173.0,60169.0,0.083086]
[1726584176709,0.50349462,60173.0,60169.0,0.083086]
[1726584176916,0.05961362,60172.0,60170.0,0.083085]
[1726584177134,0.05961362,60172.0,60166.0,0.3608]
[1726584177135,0.05961362,60172.0,60167.0,0.083089]
[1726584177309,0.083089,60168.0,60166.0,0.3608]
[1726584177506,0.083089,60167.0,60166.0,0.3608]
[1726584177919,0.083094,60164.0,60162.0,0.01114976]
[1726584178108,0.34961362,60170.0,60158.0,0.0831]
[1726584178109,0.3608,60166.0,60158.0,0.0024934]
[1726584178312,0.083098,60161.0,60158.0,0.0024934]
[1726584178820,0.083093,60164.0,60161.0,0.083097]
[1726584179024,0.05961362,60165.0,60164.0,0.083093]
[1726584179227,0.083085,60171.0,60162.0,0.3608]
[1726584179428,0.05961362,60172.0,60162.0,0.3608]
[1726584179720,0.083082,60172.0,60161.0,0.29]
[1726584179922,0.14269562,60172.0,60167.0,0.083089]
[1726584180120,0.05961362,60172.0,60167.0,0.083089]
[1726584180425,0.3608,60168.0,60158.0,0.0024934]
[1726584180927,0.08309,60166.0,60158.0,0.0024934]
[1726584181129,0.0831,60159.0,60158.0,0.0024934]
[1726584181337,0.0831,60159.0,60158.0,0.01375073]
[1726584181627,0.0831,60159.0,60158.0,0.0024934]
[1726584182734,0.05961362,60161.0,60160.0,0.083099]
[1726584183025,0.11283075,60171.0,60160.0,0.083099]
[1726584183324,0.11283075,60171.0,60170.0,0.083085]
[1726584183822,0.14269856,60176.0,60172.0,0.083082]
[1726584184333,0.083078,60175.0,60169.0,0.083086]
[1726584184518,0.3608,60172.0,60169.0,0.083086]
[1726584184823,0.3608,60172.0,60168.0,0.00249299]
[1726584185023,0.3608,60172.0,60168.0,0.01122766]
[1726584185024,0.083086,60169.0,60168.0,0.01122766]
[1726584185223,0.05962056,60169.0,60161.0,0.083097]
[1726584185426,0.3608,60172.0,60162.0,0.083096]
[1726584185427,0.083092,60165.0,60162.0,0.083096]
[1726584185826,0.083093,60164.0,60160.0,0.083099]
[1726584186024,0.29,60168.0,60158.0,0.01384867]
[1726584186230,0.29,60162.0,60152.0,0.00249366]
[1726584186422,0.083102,60158.0,60154.0,0.083107]
[1726584186628,0.083103,60157.0,60154.0,0.083107]
[1726584186829,0.083099,60161.0,60152.0,0.00249366]
[1726584187126,0.05962056,60162.0,60152.0,0.00249366]
[1726584187321,0.083097,60162.0,60155.0,0.083105]
[1726584187526,0.14271756,60162.0,60155.0,0.083105]
[1726584187733,0.14271756,60162.0,60152.0,0.00249366]
[1726584187734,0.05962056,60162.0,60152.0,0.00249366]
[1726584187925,0.42042056,60163.0,60152.0,0.00249366]
[1726584188126,0.05962056,60162.0,60152.0,0.00249366]
[1726584188729,0.3608,60163.0,60152.0,0.00249366]
[1726584188730,0.42042056,60163.0,60158.0,0.0831]
[1726584188930,0.083098,60161.0,60155.0,0.083105]
[1726584189127,0.05962056,60162.0,60155.0,0.083105]
[1726584189335,0.14271656,60162.0,60155.0,0.083105]
[1726584189531,0.14271656,60162.0,60152.0,0.00249366]
[1726584189532,0.3608,60158.0,60152.0,0.00249366]
[1726584189732,0.3608,60158.0,60154.0,0.083106]
[1726584189923,0.3608,60158.0,60155.0,0.083105]
[1726584190323,0.083108,60153.0,60152.0,0.00249366]
[1726584190633,0.3608,60153.0,60151.0,0.09434011]
[1726584190835,0.3608,60160.0,60148.0,0.29]
[1726584191128,0.05963099,60159.0,60158.0,0.083101]
[1726584191433,0.05963099,60159.0,60158.0,0.07479091]
[1726584192128,0.05963099,60159.0,60155.0,0.3608]
[1726584192329,0.05963099,60158.0,60155.0,0.37215693]
[1726584192528,0.05963099,60157.0,60155.0,0.01135693]
[1726584192724,0.05962966,60156.0,60155.0,0.083106]
[1726584193133,0.05962966,60165.0,60155.0,0.3608]
[1726584193338,0.0682137,60173.0,60159.0,0.6508]
[1726584193339,0.05962966,60164.0,60159.0,0.6508]
[1726584193529,0.3608,60174.0,60163.0,0.29]
[1726584193732,0.2654704,60167.0,60166.0,0.08309]
[1726584194030,0.32508981,60167.0,60165.0,0.3608]
[1726584194237,0.05961941,60166.0,60165.0,0.3608]
[1726584194733,0.05961941,60166.0,60165.0,0.443892]
[1726584195841,0.05961941,60166.0,60165.0,0.942532]
[1726584196031,0.2654704,60172.0,60171.0,0.083084]
[1726584196224,0.2654704,60172.0,60171.0,0.733884]
[1726584196425,0.80730318,60191.0,60182.0,0.083067]
[1726584196633,0.73908948,60191.0,60185.0,0.083063]
[1726584196831,0.73908948,60191.0,60181.0,0.083069]
[1726584197044,0.083059,60190.0,60185.0,0.083064]
[1726584197232,0.083059,60190.0,60178.0,0.3608]
[1726584197233,0.11281908,60191.0,60178.0,0.3608]
[1726584197427,0.6508,60195.0,60178.0,0.3608]
[1726584197628,0.733851,60195.0,60181.0,0.29]
[1726584197831,0.3608,60190.0,60181.0,0.29]
[1726584198035,0.3608,60190.0,60185.0,0.083064]
[1726584198335,0.3608,60190.0,60180.0,0.083071]
[1726584198642,0.3608,60190.0,60181.0,0.083069]
[1726584198643,0.443857,60190.0,60181.0,0.083069]
[1726584198826,0.443857,60190.0,60177.0,0.01378164]
[1726584199033,0.05960403,60189.0,60183.0,0.083066]
[1726584199234,0.05960403,60189.0,60184.0,0.083065]
[1726584199534,0.05960403,60189.0,60177.0,0.0140707]
[1726584199535,0.14266303,60189.0,60177.0,0.0140707]
[1726584199840,0.3608,60185.0,60177.0,0.00249246]
[1726584200140,0.42040403,60185.0,60182.0,0.29]
[1726584200332,0.3608,60185.0,60184.0,0.083066]
[1726584200534,0.05960233,60189.0,60188.0,0.08306]
[1726584200842,0.3608,60190.0,60188.0,0.083059]
[1726584201045,0.3608,60190.0,60189.0,0.083059]
[1726584201433,0.3608,60190.0,60185.0,0.083064]
[1726584201635,0.3608,60190.0,60179.0,0.3608]
[1726584201936,0.3608,60190.0,60187.0,0.083061]
[1726584202139,0.3608,60190.0,60179.0,0.3608]
[1726584202140,0.3608,60190.0,60189.0,0.083059]
[1726584202632,0.3608,60190.0,60180.0,0.083071]
[1726584202839,0.3608,60190.0,60186.0,0.083062]
[1726584203037,0.3608,60190.0,60187.0,0.083061]
[1726584203631,0.3608,60190.0,60179.0,0.3608]
[1726584203834,0.29,60189.0,60183.0,0.083067]
[1726584204033,0.34960233,60189.0,60183.0,0.083067]
[1726584204638,0.34960233,60189.0,60179.0,0.3608]
[1726584204836,0.34960233,60189.0,60183.0,0.083067]
[1726584205640,0.34960233,60189.0,60179.0,0.3608]
[1726584205641,0.29,60184.0,60179.0,0.3608]
[1726584205831,0.34960233,60189.0,60179.0,0.3608]
[1726584206137,0.05960233,60188.0,60183.0,0.083066]
[1726584206344,0.083065,60185.0,60180.0,0.08307]
[1726584206546,0.083065,60185.0,60179.0,0.37226105]
[1726584206836,0.083071,60180.0,60179.0,0.01146105]
[1726584207042,0.083074,60178.0,60172.0,0.3608]
[1726584207233,0.05960233,60179.0,60172.0,0.3608]
[1726584207434,0.3608,60180.0,60172.0,0.3608]
[1726584207635,0.50347333,60180.0,60177.0,0.09697505]
[1726584207842,0.05960233,60179.0,60177.0,0.00249246]
[1726584208040,0.083074,60178.0,60177.0,0.00249246]
[1726584208934,0.083074,60178.0,60158.0,0.3608]
[1726584208935,0.166162,60173.0,60158.0,0.3608]
[1726584209135,0.29,60163.0,60158.0,0.3608]
[1726584209437,0.3608,60173.0,60158.0,0.3608]
[1726584209438,0.14269249,60172.0,60158.0,0.3608]
[1726584209636,0.083089,60168.0,60161.0,0.083096]
[1726584209831,0.08309,60167.0,60161.0,0.083096]
[1726584210037,0.08309,60167.0,60159.0,0.083099]
[1726584210243,0.14269249,60172.0,60165.0,0.29]
[1726584210441,0.083082,60172.0,60165.0,0.29]
[1726584210634,0.083082,60172.0,60164.0,0.083093]
[1726584210941,0.083081,60173.0,60160.0,0.29]
[1726584211141,0.083081,60173.0,60158.0,0.3608]
[1726584211142,0.05961049,60175.0,60164.0,0.083092]
[1726584211329,0.05961049,60175.0,60158.0,0.3608]
[1726584211330,0.3608,60171.0,60159.0,0.0831]
[1726584211536,0.3608,60171.0,60158.0,0.3608]
[1726584211537,0.3608,60171.0,60160.0,0.083098]
[1726584211738,0.083084,60171.0,60164.0,0.083093]
[1726584212242,0.083084,60171.0,60161.0,0.29]
[1726584212243,0.34961049,60177.0,60165.0,0.083092]
[1726584212446,0.083085,60171.0,60165.0,0.083092]
[1726584212943,0.34961049,60177.0,60165.0,0.083092]
[1726584212944,0.083085,60170.0,60165.0,0.083092]
[1726584213146,0.08308,60174.0,60169.0,0.3608]
[1726584213335,0.34961049,60177.0,60169.0,0.3608]
[1726584213833,0.34961049,60177.0,60163.0,0.37206772]
[1726584213834,0.083084,60171.0,60170.0,0.3608]
[1726584216552,0.083086,60170.0,60165.0,0.083091]
[1726584216751,0.29,60172.0,60163.0,0.01126772]
[1726584216939,0.083078,60175.0,60158.0,0.3608]
[1726584216940,0.083081,60174.0,60167.0,0.3608]
[1726584217257,0.083079,60175.0,60167.0,0.3608]
[1726584217436,0.05961049,60177.0,60167.0,0.3608]
[1726584217637,0.08308,60174.0,60167.0,0.3608]
[1726584217845,0.083079,60175.0,60167.0,0.3608]
[1726584218047,0.083079,60175.0,60171.0,0.083083]
[1726584218546,0.08308,60174.0,60171.0,0.083083]
[1726584219646,0.05961049,60177.0,60168.0,0.083088]
[1726584219847,0.29,60176.0,60167.0,0.45507]
[1726584220051,0.083082,60173.0,60168.0,0.083087]
[1726584220249,0.083082,60172.0,60168.0,0.083087]
[1726584220442,0.05961049,60176.0,60169.0,0.29]
[1726584220746,0.083073,60179.0,60175.0,0.083078]
[1726584221252,0.05961049,60181.0,60178.0,0.3608]
[1726584221448,0.05961049,60183.0,60178.0,0.3608]
[1726584221854,0.05961049,60186.0,60178.0,0.3608]
[1726584222052,0.08307,60181.0,60178.0,0.3608]
[1726584222248,0.083064,60185.0,60178.0,0.3608]
[1726584222660,0.083072,60180.0,60178.0,0.3608]
[1726584222862,0.083067,60183.0,60178.0,0.3608]
[1726584223039,0.083069,60182.0,60180.0,0.083071]
[1726584223650,0.083066,60184.0,60181.0,0.08307]
[1726584224155,0.05961049,60186.0,60178.0,0.3608]
[1726584224156,0.083071,60180.0,60178.0,0.01110009]
[1726584224348,0.083071,60180.0,60172.0,0.443881]
[1726584224652,0.083081,60173.0,60172.0,0.3608]
[1726584225052,0.083077,60176.0,60172.0,0.443882]
[1726584225556,0.083081,60173.0,60172.0,0.3608]
[1726584225753,0.083077,60176.0,60172.0,0.3608]
[1726584225950,0.05961049,60181.0,60172.0,0.443882]
[1726584226152,0.083078,60176.0,60172.0,0.443882]
[1726584226344,0.083078,60176.0,60172.0,0.37195597]
[1726584226858,0.083078,60175.0,60174.0,0.083079]
[1726584227251,0.08308,60174.0,60172.0,0.37195597]
[1726584227658,0.05961049,60181.0,60172.0,0.01115597]
[1726584227659,0.166162,60173.0,60172.0,0.01115597]
[1726584227860,0.3608,60173.0,60165.0,0.3608]
[1726584228052,0.08309,60167.0,60165.0,0.00909122]
[1726584228256,0.05961049,60166.0,60162.0,0.083096]
[1726584228551,0.05961049,60166.0,60160.0,0.4822]
[1726584228552,0.05961049,60165.0,60160.0,0.4822]
[1726584228757,0.05961049,60164.0,60160.0,0.4822]
[1726584228944,0.05961049,60163.0,60160.0,0.4822]
[1726584229149,0.05961049,60162.0,60160.0,0.00910405]
[1726584229351,0.14270749,60161.0,60159.0,0.3608]
[1726584229552,0.22580849,60160.0,60159.0,0.00925983]
[1726584229750,0.083106,60155.0,60145.0,0.443919]
[1726584229952,0.58662249,60155.0,60145.0,0.3608]
[1726584230255,0.58662249,60155.0,60143.0,0.3608]
[1726584230761,0.58662249,60155.0,60154.0,0.41116008]
[1726584230947,0.50351649,60155.0,60154.0,0.41116008]
[1726584233661,0.14271649,60155.0,60154.0,0.41116008]
[1726584233859,0.05961049,60158.0,60156.0,0.083104]
[1726584234067,0.083104,60157.0,60154.0,0.70300008]
[1726584234254,0.05961049,60161.0,60154.0,0.41116008]
[1726584234459,0.3608,60157.0,60154.0,0.41116008]
[1726584234665,0.083106,60155.0,60154.0,0.41116008]
[1726584236359,0.05961049,60156.0,60155.0,0.083106]
[1726584236562,0.3608,60162.0,60158.0,0.083101]
[1726584236862,0.3608,60162.0,60154.0,0.70288008]
[1726584237063,0.3608,60162.0,60160.0,0.083099]
[1726584237458,0.3608,60162.0,60157.0,0.4949]
[1726584237858,0.3608,60162.0,60158.0,0.083101]
[1726584239459,0.3608,60162.0,60157.0,0.4949]
[1726584240373,0.3608,60162.0,60160.0,0.083098]
[1726584240577,0.3608,60162.0,60161.0,0.083097]
[1726584240771,0.05962135,60162.0,60161.0,0.3608]
[1726584240972,0.01983098,60174.0,60161.0,1.45944]
[1726584241167,0.3608,60175.0,60169.0,0.29]
[1726584241363,0.444789,60182.0,60169.0,0.29]
[1726584241364,0.08307,60181.0,60175.0,0.083077]
[1726584241673,0.083065,60185.0,60178.0,0.083074]
[1726584241872,0.3608,60188.0,60174.0,0.6508]
[1726584241873,0.083069,60182.0,60174.0,0.6508]
[1726584242073,0.083069,60182.0,60177.0,0.083074]
[1726584242376,0.3608,60188.0,60174.0,0.6508]
[1726584242564,0.3608,60188.0,60180.0,0.083071]
[1726584242766,0.3608,60188.0,60183.0,0.29]
[1726584242970,0.3608,60188.0,60175.0,0.4669]
[1726584242971,0.3608,60188.0,60178.0,0.29]
[1726584243477,0.3608,60188.0,60183.0,0.083067]
[1726584243770,0.3608,60188.0,60178.0,0.29]
[1726584243966,0.05960375,60187.0,60179.0,0.3608]
[1726584244171,0.05960375,60186.0,60183.0,0.083067]
[1726584244367,0.05960375,60185.0,60184.0,0.083066]
[1726584244561,0.05960375,60187.0,60184.0,0.3608]
[1726584244764,0.05960375,60186.0,60185.0,0.083064]
[1726584245582,0.49852,60185.0,60144.0,0.08312]
[1726584245767,0.3608,60152.0,60144.0,0.00249399]
[1726584245966,0.1664,60183.0,60123.0,0.4546]
[1726584245967,0.7216,60145.0,60138.0,0.28936941]
[1726584246171,0.13243669,60144.0,60143.0,0.083121]
[1726584246378,0.06683295,60144.0,60143.0,0.083121]
[1726584246673,0.17747136,60144.0,60143.0,1.0988]
[1726584247868,0.01537667,60144.0,60143.0,1.10818134]
[1726584248068,0.72256001,60145.0,60143.0,1.68910234]
[1726584248370,0.7216,60145.0,60144.0,0.4988]
[1726584248572,0.14502358,60195.0,60144.0,0.4988]
[1726584248573,0.3608,60162.0,60144.0,0.4988]
[1726584248875,0.3608,60166.0,60161.0,0.29]
[1726584249170,0.3608,60172.0,60162.0,0.4526]
[1726584249873,0.3608,60178.0,60162.0,0.4526]
[1726584250070,0.3608,60172.0,60162.0,0.4526]
[1726584250470,0.3608,60164.0,60162.0,0.4526]
[1726584250972,0.3608,60164.0,60163.0,0.49864]
[1726584251174,0.18184548,60166.0,60163.0,1.09864]
[1726584251372,0.05961351,60171.0,60162.0,0.82526003]
[1726584251373,0.18184548,60168.0,60162.0,0.46446003]
[1726584251575,0.18184548,60166.0,60162.0,0.46270003]
[1726584251976,0.18184548,60166.0,60163.0,0.49864]
[1726584252279,0.18184548,60167.0,60164.0,0.49864]
[1726584252478,0.18184548,60167.0,60163.0,0.4807]
[1726584252778,0.16493231,60167.0,60166.0,0.3608]
[1726584252967,0.03187001,60178.0,60173.0,0.08308]
[1726584253167,0.3608,60184.0,60177.0,0.29]
[1726584253978,0.3608,60184.0,60174.0,0.3608]
[1726584253979,0.3608,60179.0,60174.0,0.3608]
[1726584254167,0.1487377,60176.0,60174.0,0.3608]
[1726584254373,0.1487377,60176.0,60175.0,0.49852]
[1726584254775,0.1487377,60176.0,60175.0,1.09852]
[1726584255684,0.3608,60179.0,60175.0,1.09852]
[1726584255685,0.3608,60179.0,60176.0,0.49852]
[1726584255871,0.3608,60179.0,60178.0,0.29]
[1726584256071,0.40149277,60179.0,60178.0,0.29]
[1726584256270,0.40149277,60179.0,60178.0,1.38852]
[1726584256785,0.40149277,60179.0,60178.0,1.09852]
[1726584257174,0.083074,60178.0,60176.0,0.001]
[1726584257369,0.04069277,60177.0,60176.0,0.001]
[1726584257568,0.04069277,60177.0,60174.0,0.00933845]
[1726584257785,0.3608,60175.0,60173.0,0.00249258]
[1726584257977,0.04069277,60174.0,60173.0,0.00249258]
[1726584258172,0.09170539,60174.0,60173.0,0.29249258]
[1726584258376,0.09170539,60174.0,60173.0,0.30188412]
[1726584258977,0.45250539,60174.0,60173.0,0.30188412]
[1726584259282,0.083055,60192.0,60173.0,0.30188412]
[1726584259283,0.00084,60194.0,60174.0,0.49856]
[1726584259579,0.3608,60203.0,60174.0,0.49856]
[1726584259580,0.3608,60203.0,60193.0,0.6508]
[1726584259782,0.3608,60203.0,60195.0,0.29]
[1726584259986,0.3608,60203.0,60194.0,0.538551]
[1726584260376,0.3608,60203.0,60197.0,0.083047]
[1726584260975,0.3608,60203.0,60198.0,0.083045]
[1726584261380,0.3608,60203.0,60195.0,0.291]
[1726584261680,0.3608,60203.0,60195.0,0.38326837]
[1726584261681,0.181473,60197.0,60195.0,0.38326837]
[1726584262078,0.181473,60198.0,60195.0,0.38326837]
[1726584262380,0.181473,60198.0,60195.0,0.01021837]
[1726584262381,0.3608,60198.0,60195.0,0.01021837]
[1726584262582,0.083049,60196.0,60195.0,0.01021837]
[1726584263188,0.083049,60196.0,60195.0,0.00921837]
[1726584263489,0.083063,60186.0,60175.0,0.539478]
[1726584263679,0.3608,60179.0,60175.0,0.4564]
[1726584264082,0.3608,60179.0,60178.0,0.083074]
[1726584264280,0.3608,60179.0,60175.0,0.46534877]
[1726584264281,0.59329507,60179.0,60175.0,0.46534877]
[1726584264584,0.2920955,60178.0,60175.0,0.46534877]
[1726584264781,0.05100478,60177.0,60176.0,0.083077]
[1726584264971,0.18149029,60177.0,60176.0,0.083077]
[1726584265284,0.05100478,60177.0,60175.0,0.00994877]
[1726584265586,0.3608,60179.0,60175.0,0.00994877]
[1726584265587,0.05100478,60176.0,60175.0,0.00994877]
[1726584265775,0.29209679,60178.0,60175.0,0.09302677]
[1726584265976,0.05100478,60177.0,60175.0,0.09302677]
[1726584266176,0.05100478,60176.0,60175.0,0.00994877]
[1726584266383,0.1106065,60178.0,60175.0,0.00994877]
[1726584266685,0.05100478,60177.0,60175.0,0.00994877]
[1726584266878,0.05100478,60177.0,60164.0,0.4935]
[1726584266879,0.083086,60169.0,60157.0,0.083103]
[1726584267081,0.18165699,60159.0,60153.0,0.4858]
[1726584267378,0.18165699,60159.0,60156.0,0.083104]
[1726584267379,0.09170776,60158.0,60156.0,0.083104]
[1726584267697,0.09170776,60157.0,60156.0,0.083104]
[1726584267879,0.09170776,60157.0,60153.0,0.083108]
[1726584268088,0.3608,60154.0,60153.0,0.083108]
[1726584268288,0.09170776,60154.0,60153.0,0.083108]
[1726584268583,0.09170776,60154.0,60153.0,1.181828]
[1726584268886,0.09170776,60154.0,60153.0,0.581828]
[1726584269080,0.04070298,60154.0,60153.0,1.181828]
[1726584269276,0.04070298,60154.0,60153.0,0.581828]
[1726584269686,0.04070298,60154.0,60153.0,1.181828]
[1726584269888,0.04070298,60154.0,60153.0,0.581828]
[1726584270085,0.04070298,60154.0,60153.0,1.181828]
[1726584270491,0.04070298,60154.0,60153.0,0.581828]
[1726584271088,0.04070298,60154.0,60153.0,0.582828]
[1726584271288,0.04070298,60154.0,60153.0,1.182828]
[1726584271791,0.09170776,60154.0,60153.0,1.182828]
[1726584271981,0.04070298,60154.0,60153.0,1.543628]
[1726584272287,0.04070298,60154.0,60153.0,1.709844]
[1726584272288,0.21991447,60154.0,60153.0,1.709844]
[1726584272486,0.03821119,60154.0,60153.0,1.709844]
[1726584272687,0.05960172,60171.0,60166.0,0.083089]
[1726584272894,0.05101666,60170.0,60166.0,0.083089]
[1726584273093,0.42040172,60172.0,60166.0,0.083089]
[1726584273094,0.18170515,60167.0,60166.0,0.083089]
[1726584273595,0.59352181,60167.0,60161.0,0.29249328]
[1726584273786,0.3608,60162.0,60161.0,0.08559028]
[1726584274092,0.41181666,60162.0,60161.0,0.08559028]
[1726584275090,0.41181666,60162.0,60161.0,0.09460115]
[1726584276592,0.59352181,60162.0,60161.0,0.09460115]
[1726584276788,0.59352181,60162.0,60161.0,0.09560115]
[1726584277596,0.47143547,60162.0,60161.0,0.09560115]
[1726584277792,0.41181666,60162.0,60161.0,0.09560115]
[1726584278002,0.23287306,60162.0,60161.0,0.09560115]
[1726584278302,0.1818564,60165.0,60164.0,0.083093]
[1726584278490,0.05101698,60165.0,60161.0,0.30250415]
[1726584278691,0.23291283,60164.0,60163.0,0.083095]
[1726584278884,0.23291283,60164.0,60161.0,0.01250415]
[1726584279089,0.3608,60162.0,60161.0,0.01250415]
[1726584279289,0.41181698,60162.0,60161.0,0.09560115]
[1726584279590,0.59371358,60162.0,60161.0,0.09460115]
[1726584279784,0.55453179,60162.0,60161.0,0.01250415]
[1726584280193,0.55453179,60162.0,60161.0,0.01150415]
[1726584280388,0.59524099,60162.0,60161.0,0.01250415]
[1726584281697,1.61078499,60162.0,60152.0,0.083109]
[1726584281998,0.3608,60153.0,60152.0,0.083109]
[1726584282184,0.09172618,60153.0,60152.0,0.166219]
[1726584282384,0.0407092,60153.0,60152.0,0.083109]
[1726584282586,0.09172618,60153.0,60152.0,0.083109]
[1726584282888,0.09172618,60153.0,60152.0,1.264939]
[1726584283088,0.09172618,60153.0,60152.0,1.181829]
[1726584283399,0.09172618,60153.0,60152.0,0.582829]
[1726584284107,0.09172618,60153.0,60121.0,0.443952]
[1726584284108,0.74252618,60153.0,60121.0,0.443952]
[1726584284298,0.74252618,60153.0,60115.0,0.00249519]
[1726584284299,0.29,60134.0,60115.0,0.00249519]
[1726584284499,0.29,60134.0,60115.0,0.36329519]
[1726584284500,0.39032801,60134.0,60115.0,0.36329519]
[1726584284695,0.18181426,60117.0,60115.0,0.00249519]
[1726584285002,0.09172618,60116.0,60115.0,0.00249519]
[1726584285292,0.45252618,60116.0,60115.0,0.00249519]
[1726584285487,0.24030393,60116.0,60115.0,1.83549619]
[1726584285699,0.14857775,60122.0,60115.0,1.75233519]
[1726584285990,0.14857775,60123.0,60122.0,0.083151]
[1726584286190,0.14857775,60126.0,60123.0,0.08315]
[1726584286396,0.52588639,60125.0,60124.0,0.083148]
[1726584286598,0.3608,60125.0,60124.0,0.083148]
[1726584286797,0.3608,60125.0,60120.0,0.083153]
[1726584287096,0.16496173,60121.0,60120.0,0.083153]
[1726584287297,0.16496173,60123.0,60122.0,0.083151]
[1726584287601,0.3628,60125.0,60124.0,0.083148]
[1726584287998,0.3628,60125.0,60124.0,1.182108]
[1726584288496,0.002,60125.0,60124.0,1.182108]
[1726584288699,0.13187868,60138.0,60126.0,0.083146]
[1726584288893,0.3608,60140.0,60133.0,0.29]
[1726584289092,0.3608,60140.0,60137.0,0.08313]
[1726584289404,0.3608,60140.0,60132.0,0.29]
[1726584289603,0.3608,60140.0,60137.0,0.08313]
[1726584289791,0.3608,60138.0,60137.0,0.08313]
[1726584290805,0.3608,60138.0,60137.0,0.08413]
[1726584291108,0.3608,60138.0,60137.0,0.001]
[1726584291298,0.49267868,60138.0,60137.0,0.001]
[1726584291605,0.3608,60138.0,60137.0,0.001]
[1726584292404,0.3688,60138.0,60137.0,0.001]
[1726584292993,0.3688,60138.0,60137.0,0.084131]
[1726584293301,0.29700772,60147.0,60141.0,0.083125]
[1726584293494,0.3608,60153.0,60146.0,0.3608]
[1726584293690,0.3608,60147.0,60142.0,0.00249378]
[1726584293997,0.04071197,60146.0,60145.0,0.083118]
[1726584294199,0.04071197,60146.0,60142.0,0.00249378]
[1726584294397,0.04071197,60145.0,60144.0,0.08312]
[1726584294703,0.16496173,60154.0,60144.0,0.3608]
[1726584294909,0.3608,60166.0,60144.0,0.3608]
[1726584294910,0.16496173,60168.0,60152.0,0.6508]
[1726584295100,0.18159729,60174.0,60162.0,0.083095]
[1726584295101,0.3608,60165.0,60162.0,0.083095]
[1726584295304,0.05101772,60164.0,60163.0,0.083095]
[1726584295603,0.3608,60165.0,60164.0,0.083093]
[1726584295792,0.41181929,60165.0,60164.0,0.083093]
[1726584296995,0.47143638,60165.0,60164.0,0.083093]
[1726584297203,0.59354795,60165.0,60164.0,0.083093]
[1726584297397,0.59354795,60165.0,60164.0,0.09218326]
[1726584297796,0.65316539,60165.0,60164.0,0.09218326]
[1726584298399,0.59354965,60165.0,60164.0,0.09218326]
[1726584298807,0.65316674,60165.0,60164.0,0.00909026]
[1726584299005,0.65316674,60165.0,60162.0,0.001]
[1726584299706,0.05102064,60164.0,60162.0,0.01039192]
[1726584300006,0.11063773,60164.0,60159.0,0.00249336]
[1726584300210,0.3608,60160.0,60159.0,0.00249336]
[1726584300413,0.3608,60160.0,60159.0,0.00930849]
[1726584300600,0.3608,60160.0,60154.0,0.0024936]
[1726584300903,0.3608,60155.0,60154.0,0.0024936]
[1726584301102,0.443906,60155.0,60154.0,0.0024936]
[1726584301302,0.00092,60159.0,60158.0,0.083101]
[1726584301498,0.3608,60161.0,60160.0,0.083099]
[1726584301898,0.05961709,60164.0,60163.0,0.083095]
[1726584302096,0.05961709,60164.0,60163.0,0.373095]
[1726584302401,0.2150757,60192.0,60191.0,0.083056]
[1726584303009,0.2150757,60192.0,60191.0,0.443856]
[1726584303310,0.3608,60216.0,60204.0,0.083038]
[1726584303508,0.36164,60211.0,60204.0,0.083038]
[1726584303706,0.36164,60211.0,60198.0,0.37553776]
[1726584303904,0.36164,60211.0,60198.0,0.00249176]
[1726584303905,0.3608,60205.0,60198.0,0.00249176]
[1726584304102,0.3608,60204.0,60198.0,0.00249176]
[1726584304302,0.443829,60211.0,60198.0,0.00249176]
[1726584304506,0.3608,60199.0,60198.0,0.00249176]
[1726584304709,0.3608,60199.0,60198.0,0.01147251]
[1726584304904,0.3608,60199.0,60198.0,0.00249176]
[1726584305507,0.85916,60199.0,60198.0,0.00249176]
[1726584305808,1.81996,60199.0,60198.0,0.00249176]
[1726584306111,0.3608,60199.0,60198.0,0.00249176]
[1726584306302,0.41179341,60199.0,60198.0,0.00249176]
[1726584306503,0.41179341,60199.0,60198.0,0.00349176]
[1726584307611,0.3608,60199.0,60198.0,0.00349176]
[1726584308317,0.3608,60219.0,60198.0,0.80429176]
[1726584308607,0.9584,60218.0,60198.0,0.80429176]
[1726584308812,1.041419,60218.0,60204.0,0.083037]
[1726584309015,0.9584,60218.0,60207.0,0.083034]
[1726584309205,0.9584,60218.0,60208.0,0.083032]
[1726584309517,0.3608,60211.0,60205.0,0.44]
[1726584309907,0.3608,60211.0,60210.0,0.08303]
[1726584310607,0.3608,60211.0,60205.0,0.524036]
[1726584310914,0.00096001,60218.0,60206.0,0.3608]
[1726584311114,0.3608,60219.0,60206.0,0.3608]
[1726584311300,0.0509783,60218.0,60210.0,0.44]
[1726584311501,0.0509783,60218.0,60206.0,0.3608]
[1726584311502,0.05097826,60217.0,60216.0,0.44]
[1726584311707,0.3608,60219.0,60216.0,0.523021]
[1726584311913,0.05097658,60218.0,60212.0,0.00249119]
[1726584312107,0.3608,60214.0,60212.0,0.00249119]
[1726584313311,0.3608,60219.0,60212.0,0.00999582]
[1726584313516,0.3608,60219.0,60216.0,0.44]
[1726584313719,0.3608,60219.0,60218.0,0.083019]
[1726584314113,0.3608,60224.0,60218.0,0.083019]
[1726584314316,0.3608,60224.0,60216.0,0.44]
[1726584315218,0.3608,60224.0,60222.0,0.44]